[Event "Vezerkepzo GM November 2021"]
[Site "Budapest"]
[Date "2021.11.21"]
[Round "4.5"]
[White "Juhasz, Agoston"]
[Black "Murphy, Conor E"]
[Result "0-1"]
[ECO "C54"]
[WhiteElo "2379"]
[BlackElo "2421"]
[Annotator "RC"]
[PlyCount "162"]
[EventDate "2021.11.20"]
[EventType "tourn"]
[EventCountry "HUN"]
[SourceTitle "playchess.com"]
[Source "ChessBase"]
[SourceQuality "1"]
[TimeControl "40/5400+30:1800+30"]

1. e4 {[%emt 0:00:04]} e5 {[%emt 0:01:44]} 2. Nf3 {[%emt 0:00:07]} Nc6 {[%emt 0:00:04]} 3. Bc4 {[%emt 0:00:13]} Nf6 {[%emt 0:00:24]} 4. d3 {[%emt 0:00:16]} Bc5 {[%emt 0:00:40]} 5. O-O {[%emt 0:00:35]} a6 {[%emt 0:01:06]} 6. c3 {[%emt 0:00:26]} d6 {[%emt 0:03:13]} 7. Bb3 {[%emt 0:00:47]} Ba7 {[%emt 0:00:19]} 8. Nbd2 {[%emt 0:04:09]} O-O {[%emt 0:00:34]} 9. h3 {[%emt 0:02:14]} h6 {[%emt 0:00:28]} 10. Re1 {[%emt 0:00:56]} Re8 {[%emt 0:00:22]} 11. Nf1 {[%emt 0:01:35]} Be6 {[%emt 0:00:45]} 12. Bc2 {[%emt 0:04:12]} d5 {[%emt 0:00:45]} 13. exd5 {[%emt 0:00:18]} Qxd5 {[%emt 0:12:48]} 14. Ng3 {[%emt 0:00:55]} Rad8 {[%emt 0:00:31]} 15. b4 {[%emt 0:04:03]} Qd6 {[%emt 0:15:34]} 16. a4 {[%emt 0:12:24]} Bxh3 {[%emt 0:15:25]} 17. gxh3 {[%emt 0:20:51]} e4 {[%emt 0:00:29]} 18. Nf5 {[%emt 0:09:27]} Qe6 {[%emt 0:01:23]} 19. N3d4 {[%emt 0:02:34]} Nxd4 {[%emt 0:06:09]} 20. Nxd4 {[%emt 0:00:07]} Rxd4 {[%emt 0:20:29]} 21. cxd4 {[%emt 0:01:27]} Bxd4 {[%emt 0:00:59]} 22. Be3 {[%emt 0:22:45]} Bxa1 {[%emt 0:00:49]} 23. Qxa1 {[%emt 0:00:02]} Qxh3 {[%emt 0:01:10]} 24. Bd1 {[%emt 0:05:18]} exd3 {[%emt 0:01:47]} 25. Qd4 {[%emt 0:00:21]} Re6 {[%emt 0:04:53]} 26. Bd2 {[%emt 0:04:20]} Rd6 {[%emt 0:00:23]} 27. Qe3 {[%emt 0:00:11]} Qd7 {[%emt 0:02:41]} 28. Qf3 {[%emt 0:01:27]} Nd5 {[%emt 0:04:17]} 29. Re5 {[%emt 0:00:59]} Rg6+ {[%emt 0:00:37]} 30. Kh1 {[%emt 0:00:31]} Nb6 {[%emt 0:00:45]} 31. Bb3 {[%emt 0:00:44]} Rf6 {[%emt 0:00:14]} 32. Qe4 {[%emt 0:00:48]} Qh3+ {[%emt 0:01:09]} 33. Kg1 {[%emt 0:00:01]} Nd7 {[%emt 0:00:38]} 34. Re8+ {[%emt 0:01:12]} Nf8 {[%emt 0:00:02]} 35. b5 {[%emt 0:00:31]} a5 {[%emt 0:01:55]} 36. Bc4 {[%emt 0:00:39]} Qh5 {[%emt 0:01:36]} 37. Qxd3 {[%emt 0:00:52]} Rd6 {[%emt 0:00:55]} 38. Qc3 {[%emt 0:00:38]} Qg4+ {[%emt 0:00:46]} 39. Kf1 {[%emt 0:00:08]} Rxd2 {[%emt 0:00:34]} 40. Qxd2 {[%emt 0:00:00]} Qxc4+ {[%emt 0:00:00]} 41. Ke1 {[%emt 0:04:22]} g5 {[%emt 0:07:13]} 42. Qxa5 {[%emt 0:06:12]} Kg7 {[%emt 0:08:17]} 43. Re3 {[%emt 0:04:53]} Kg6 {[%emt 0:01:18]} 44. Qc3 {[%emt 0:10:30]} Qxa4 {[%emt 0:01:23]} 45. Qd3+ {[%emt 0:01:13]} Kg7 {[%emt 0:00:59]} 46. Qc3+ {[%emt 0:00:35]} Kg8 {[%emt 0:00:52]} 47. Qxc7 {[%emt 0:02:28]} Qb4+ {[%emt 0:02:09]} 48. Qc3 {[%emt 0:01:27]} Qb1+ {[%emt 0:00:55]} 49. Kd2 {[%emt 0:00:29]} Qxb5 {[%emt 0:00:06]} 50. Qc8 {[%emt 0:00:32]} Qb4+ {[%emt 0:00:55]} 51. Ke2 {[%emt 0:00:13]} b5 {[%emt 0:00:30]} 52. Kf3 {[%emt 0:00:42]} Qd6 {[%emt 0:02:55]} 53. Kg2 {[%emt 0:00:34]} b4 {[%emt 0:00:27]} 54. Rf3 {[%emt 0:00:40]} Qd5 {[%emt 0:01:32]} 55. Qf5 {[%emt 0:00:36]} Qb7 {[%emt 0:00:18]} 56. Kg1 {[%emt 0:02:25]} b3 {[%emt 0:00:47]} 57. Re3 {[%emt 0:00:41]} b2 {[%emt 0:00:31]} 58. Re1 {[%emt 0:00:33]} Ne6 {[%emt 0:00:24]} 59. f3 {[%emt 0:00:54]} Qb6+ {[%emt 0:01:57]} 60. Kg2 {[%emt 0:00:23]} Qd6 {[%emt 0:03:27]} 61. Qc2 {[%emt 0:00:35]} Qd4 {[%emt 0:00:48]} 62. Rd1 {[%emt 0:00:30]} Qf6 {[%emt 0:01:46]} 63. Qc8+ {[%emt 0:00:28]} Kg7 {[%emt 0:00:08]} 64. Qc2 {[%emt 0:00:20]} Nf4+ {[%emt 0:00:19]} 65. Kh2 {[%emt 0:00:12]} Ng6 {[%emt 0:00:34]} 66. Rb1 {[%emt 0:00:52]} Qf4+ {[%emt 0:00:50]} 67. Kg1 {[%emt 0:00:03]} Ne5 {[%emt 0:00:15]} 68. Qxb2 {[%emt 0:00:44]} Qg3+ {[%emt 0:00:11]} 69. Kh1 {[%emt 0:00:08]} Qxf3+ {[%emt 0:00:13]} 70. Kg1 {[%emt 0:00:23]} Qg3+ {[%emt 0:00:19]} 71. Kh1 {[%emt 0:00:05]} h5 {[%emt 0:00:58]} 72. Rf1 {[%emt 0:00:58]} Qh3+ {[%emt 0:00:30]} 73. Kg1 {[%emt 0:00:02]} Qe3+ {[%emt 0:01:19]} 74. Kh2 {[%emt 0:01:38]} g4 {[%emt 0:01:18]} 75. Kg2 {[%emt 0:00:52]} h4 {[%emt 0:00:34]} 76. Kh1 {[%emt 0:00:29]} Qe4+ {[%emt 0:00:12]} 77. Kg1 {[%emt 0:00:04]} f6 {[%emt 0:00:25]} 78. Ra1 {[%emt 0:01:06]} Nf3+ {[%emt 0:00:42]} 79. Kh1 {[%emt 0:00:15]} Ng5+ {[%emt 0:00:53]} 80. Kg1 {[%emt 0:00:20]} g3 {[%emt 0:00:18]} 81. Qg2 {[%emt 0:00:56]} Qd4+ {[%emt 0:00:08]} 0-1

[Event "Vezerkepzo GM November 2021"]
[Site "Budapest"]
[Date "2021.11.23"]
[Round "6.5"]
[White "Murphy, Conor E"]
[Black "Chakravarthi Reddy, M."]
[Result "1-0"]
[ECO "C14"]
[WhiteElo "2421"]
[BlackElo "2332"]
[Annotator "RC"]
[PlyCount "81"]
[EventDate "2021.11.20"]
[EventType "tourn"]
[EventCountry "HUN"]
[SourceTitle "playchess.com"]
[Source "ChessBase"]
[SourceQuality "1"]
[TimeControl "40/5400+30:1800+30"]

1. e4 {[%emt 0:02:35]} e6 {[%emt 0:00:12]} 2. d4 {[%emt 0:00:18]} d5 {[%emt 0:00:02]} 3. Nc3 {[%emt 0:00:11]} Nf6 {[%emt 0:00:03]} 4. Bg5 {[%emt 0:00:17]} Be7 {[%emt 0:00:03]} 5. e5 {[%emt 0:00:07]} Nfd7 {[%emt 0:00:03]} 6. h4 {[%emt 0:00:19]} Nc6 {[%emt 0:00:04]} 7. Qd2 {[%emt 0:01:41]} f6 {[%emt 0:01:46]} 8. exf6 {[%emt 0:00:39]} Nxf6 {[%emt 0:00:04]} 9. O-O-O {[%emt 0:00:19]} O-O {[%emt 0:00:04]} 10. Kb1 {[%emt 0:00:18]} a6 {[%emt 0:01:05]} 11. Nh3 {[%emt 0:03:13]} Qe8 {[%emt 0:00:11]} 12. Re1 {[%emt 0:07:33]} b5 {[%emt 0:03:49]} 13. f3 {[%emt 0:05:22]} b4 {[%emt 0:00:52]} 14. Ne2 {[%emt 0:04:56]} h6 {[%emt 0:02:18]} 15. Bf4 {[%emt 0:08:06]} Na5 {[%emt 0:00:29]} 16. b3 {[%emt 0:09:26]} c5 {[%emt 0:21:35]} 17. g4 {[%emt 0:03:25]} Nd7 {[%emt 0:22:24]} 18. g5 {[%emt 0:06:06]} h5 {[%emt 0:00:50]} 19. Bc7 {[%emt 0:00:45]} Nc6 {[%emt 0:01:28]} 20. Nhf4 {[%emt 0:00:17]} Rxf4 {[%emt 0:34:49]} 21. Nxf4 {[%emt 0:11:40]} Nf8 {[%emt 0:00:08]} 22. dxc5 {[%emt 0:05:57]} Bxc5 {[%emt 0:01:08]} 23. Qxd5 {[%emt 0:05:33]} Bf2 {[%emt 0:06:39]} 24. Re2 {[%emt 0:00:45]} Ra7 {[%emt 0:00:02]} 25. Qd1 {[%emt 0:06:47]} Bc5 {[%emt 0:00:43]} 26. Be5 {[%emt 0:05:16]} Rd7 {[%emt 0:01:17]} 27. Nd3 {[%emt 0:02:18]} Bd4 {[%emt 0:00:06]} 28. Qc1 {[%emt 0:02:33]} a5 {[%emt 0:00:29]} 29. Re1 {[%emt 0:02:14]} Ng6 {[%emt 0:00:43]} 30. Bxd4 {[%emt 0:00:28]} Rxd4 {[%emt 0:00:15]} 31. f4 {[%emt 0:00:37]} Nce7 {[%emt 0:00:20]} 32. Bg2 {[%emt 0:00:56]} a4 {[%emt 0:01:03]} 33. Re4 {[%emt 0:00:23]} Qd8 {[%emt 0:00:45]} 34. Nxb4 {[%emt 0:01:44]} Bb7 {[%emt 0:00:50]} 35. Rxd4 {[%emt 0:00:14]} Qxd4 {[%emt 0:00:02]} 36. c3 {[%emt 0:01:33]} Qb6 {[%emt 0:00:12]} 37. Bxb7 {[%emt 0:00:33]} Qxb7 {[%emt 0:00:03]} 38. Re1 {[%emt 0:00:31]} axb3 {[%emt 0:00:03]} 39. axb3 {[%emt 0:00:19]} Nxh4 {[%emt 0:00:13]} 40. Qe3 {[%emt 0:00:00]} Nhf5 {[%emt 0:00:00]} 41. Qxe6+ {[%emt 0:03:32]} 1-0

[Event "Vezerkepzo GM November 2021"]
[Site "Budapest"]
[Date "2021.11.26"]
[Round "8.1"]
[White "Pap, Misa"]
[Black "Karthik Venkataraman"]
[Result "0-1"]
[ECO "C02"]
[WhiteElo "2377"]
[BlackElo "2491"]
[Annotator "RC"]
[PlyCount "118"]
[EventDate "2021.11.20"]
[EventType "tourn"]
[EventCountry "HUN"]
[SourceTitle "playchess.com"]
[Source "ChessBase"]
[SourceQuality "1"]
[TimeControl "40/5400+30:1800+30"]

1. e4 {[%emt 0:02:00]} e6 {[%emt 0:00:58]} 2. d4 {[%emt 0:00:02]} d5 {[%emt 0:00:05]} 3. e5 {[%emt 0:04:13]} c5 {[%emt 0:00:24]} 4. c3 {[%emt 0:00:31]} Nc6 {[%emt 0:00:04]} 5. Nf3 {[%emt 0:00:00]} Qb6 {[%emt 0:00:03]} 6. Bd3 {[%emt 0:00:00]} cxd4 {[%emt 0:00:07]} 7. O-O {[%emt 0:00:00]} Bd7 {[%emt 0:00:13]} 8. Re1 {[%emt 0:00:01]} Nge7 {[%emt 0:05:09]} 9. h4 {[%emt 0:00:02]} h6 {[%emt 0:03:41]} 10. a3 {[%emt 0:01:09]} Rc8 {[%emt 0:05:52]} 11. b4 {[%emt 0:00:01]} a6 {[%emt 0:02:51]} 12. Bb2 {[%emt 0:00:02]} Na5 {[%emt 0:15:17]} 13. cxd4 {[%emt 0:20:14]} Nc4 {[%emt 0:00:16]} 14. Bc3 {[%emt 0:00:21]} Nf5 {[%emt 0:00:47]} 15. Nbd2 {[%emt 0:13:59]} Nxd2 {[%emt 0:16:11]} 16. Qxd2 {[%emt 0:00:11]} Be7 {[%emt 0:00:03]} 17. h5 {[%emt 0:11:40]} Bb5 {[%emt 0:02:08]} 18. Bxf5 {[%emt 0:08:11]} exf5 {[%emt 0:00:06]} 19. e6 {[%emt 0:00:26]} fxe6 {[%emt 0:00:50]} 20. a4 {[%emt 0:00:06]} Bd7 {[%emt 0:03:29]} 21. b5 {[%emt 0:15:29]} O-O {[%emt 0:02:37]} 22. Ba5 {[%emt 0:00:31]} Qd6 {[%emt 0:00:05]} 23. Rab1 {[%emt 0:01:40]} Qa3 {[%emt 0:13:52]} 24. Ra1 {[%emt 0:03:25]} Qd6 {[%emt 0:07:47]} 25. Rab1 {[%emt 0:00:05]} Be8 {[%emt 0:00:50]} 26. bxa6 {[%emt 0:00:29]} bxa6 {[%emt 0:00:39]} 27. Rb6 {[%emt 0:03:58]} Qd7 {[%emt 0:00:39]} 28. Rbxe6 {[%emt 0:03:31]} Ba3 {[%emt 0:00:04]} 29. Bb4 {[%emt 0:05:50]} Bxb4 {[%emt 0:00:05]} 30. Qxb4 {[%emt 0:00:03]} Bxh5 {[%emt 0:00:12]} 31. Re7 {[%emt 0:02:31]} Qc6 {[%emt 0:00:45]} 32. Ne5 {[%emt 0:00:23]} Qc3 {[%emt 0:01:36]} 33. Qxc3 {[%emt 0:01:21]} Rxc3 {[%emt 0:00:06]} 34. Rb1 {[%emt 0:00:02]} Kh8 {[%emt 0:01:42]} 35. Rbb7 {[%emt 0:00:19]} Rg8 {[%emt 0:00:56]} 36. Nd7 {[%emt 0:02:52]} Rc6 {[%emt 0:03:01]} 37. Kh2 {[%emt 0:01:26]} f4 {[%emt 0:01:33]} 38. Ne5 {[%emt 0:00:46]} Rc2 {[%emt 0:01:34]} 39. f3 {[%emt 0:01:14]} Ra2 {[%emt 0:05:17]} 40. Rbd7 {[%emt 0:00:00]} Rxa4 {[%emt 0:00:00]} 41. Rxd5 {[%emt 0:03:20]} Ra2 {[%emt 0:06:49]} 42. Ra7 {[%emt 0:02:29]} Rd2 {[%emt 0:09:45]} 43. Rdd7 {[%emt 0:01:46]} Be8 {[%emt 0:00:25]} 44. Rd6 {[%emt 0:00:54]} Bh5 {[%emt 0:02:30]} 45. Kg1 {[%emt 0:03:13]} Rb8 {[%emt 0:02:32]} 46. Ng6+ {[%emt 0:00:21]} Bxg6 {[%emt 0:03:43]} 47. Rxg6 {[%emt 0:00:13]} Rb5 {[%emt 0:04:26]} 48. Re7 {[%emt 0:02:15]} a5 {[%emt 0:03:23]} 49. Re5 {[%emt 0:01:05]} Rxe5 {[%emt 0:00:31]} 50. dxe5 {[%emt 0:00:02]} Re2 {[%emt 0:00:01]} 51. Rg4 {[%emt 0:02:44]} g5 {[%emt 0:00:41]} 52. g3 {[%emt 0:00:31]} fxg3 {[%emt 0:00:09]} 53. f4 {[%emt 0:00:52]} gxf4 {[%emt 0:00:07]} 54. Rxf4 {[%emt 0:00:03]} Rxe5 {[%emt 0:00:05]} 55. Kg2 {[%emt 0:00:07]} Rg5 {[%emt 0:00:30]} 56. Rf7 {[%emt 0:00:30]} Kg8 {[%emt 0:00:35]} 57. Ra7 {[%emt 0:00:01]} h5 {[%emt 0:00:10]} 58. Kg1 {[%emt 0:00:00]} h4 {[%emt 0:00:09]} 59. Kg2 {[%emt 0:00:07]} h3+ {[%emt 0:00:32]} 0-1

[Event "Vezerkepzo GM November 2021"]
[Site "Budapest"]
[Date "2021.11.26"]
[Round "8.2"]
[White "Kovalev, Andrei"]
[Black "Nitish Belurkar"]
[Result "1/2-1/2"]
[ECO "C17"]
[WhiteElo "2501"]
[BlackElo "2362"]
[Annotator "RC"]
[PlyCount "20"]
[EventDate "2021.11.20"]
[EventType "tourn"]
[EventCountry "HUN"]
[SourceTitle "playchess.com"]
[Source "ChessBase"]
[SourceQuality "1"]
[TimeControl "40/5400+30:1800+30"]

1. e4 {[%emt 0:06:01]} e6 {[%emt 0:00:08]} 2. d4 {[%emt 0:00:04]} d5 {[%emt 0:00:05]} 3. Nc3 {[%emt 0:00:03]} Bb4 {[%emt 0:00:04]} 4. e5 {[%emt 0:00:03]} c5 {[%emt 0:00:04]} 5. Bd2 {[%emt 0:00:04]} Ne7 {[%emt 0:00:17]} 6. a3 {[%emt 0:00:20]} Bxc3 {[%emt 0:00:13]} 7. Bxc3 {[%emt 0:00:05]} b6 {[%emt 0:00:07]} 8. Bb5+ {[%emt 0:00:42]} Bd7 {[%emt 0:00:06]} 9. Be2 {[%emt 0:00:22]} Nbc6 {[%emt 0:00:28]} 10. Nf3 {[%emt 0:00:04]} Qc7 {[%emt 0:01:50]} 1/2-1/2

[Event "Vezerkepzo GM November 2021"]
[Site "Budapest"]
[Date "2021.11.26"]
[Round "8.3"]
[White "Juhasz, Agoston"]
[Black "Prraneeth Vuppala"]
[Result "1-0"]
[ECO "C54"]
[WhiteElo "2379"]
[BlackElo "2275"]
[Annotator "ChessBase"]
[PlyCount "79"]
[EventDate "2021.11.20"]
[EventType "tourn"]
[EventCountry "HUN"]
[SourceTitle "playchess.com"]
[Source "ChessBase"]
[SourceQuality "1"]
[TimeControl "40/5400+30:1800+30"]

1. e4 {[%emt 0:00:13]} e5 {[%emt 0:03:03]} 2. Nf3 {[%emt 0:00:22]} Nc6 {[%emt 0:00:12]} 3. Bc4 {[%emt 0:00:24]} Bc5 {[%emt 0:00:40]} 4. c3 {[%emt 0:00:28]} Nf6 {[%emt 0:00:09]} 5. d3 {[%emt 0:00:40]} d6 {[%emt 0:00:37]} 6. O-O {[%emt 0:00:21]} h6 {[%emt 0:00:08]} 7. Re1 {[%emt 0:03:00]} O-O {[%emt 0:00:27]} 8. h3 {[%emt 0:01:51]} a5 {[%emt 0:00:47]} 9. Nbd2 {[%emt 0:01:24]} Be6 {[%emt 0:00:54]} 10. Bb5 {[%emt 0:00:35]} Qb8 {[%emt 0:00:39]} 11. Bxc6 {[%emt 0:02:50]} bxc6 {[%emt 0:00:28]} 12. d4 {[%emt 0:00:31]} exd4 {[%emt 0:05:53]} 13. cxd4 {[%emt 0:00:09]} Bb6 {[%emt 0:02:23]} 14. a4 {[%emt 0:02:33]} Qa7 {[%emt 0:05:08]} 15. Nf1 {[%emt 0:15:10]} d5 {[%emt 0:18:14]} 16. e5 {[%emt 0:02:59]} Ne4 {[%emt 0:00:14]} 17. Be3 {[%emt 0:04:12]} c5 {[%emt 0:12:10]} 18. dxc5 {[%emt 0:13:12]} Bxc5 {[%emt 0:00:06]} 19. Rc1 {[%emt 0:03:35]} Bxe3 {[%emt 0:07:24]} 20. Nxe3 {[%emt 0:00:24]} Qb7 {[%emt 0:01:43]} 21. Nd4 {[%emt 0:07:23]} c5 {[%emt 0:04:58]} 22. Nb5 {[%emt 0:04:04]} d4 {[%emt 0:17:47]} 23. Nc4 {[%emt 0:01:11]} Bxc4 {[%emt 0:10:28]} 24. Rxc4 {[%emt 0:00:05]} Ng5 {[%emt 0:01:20]} 25. f4 {[%emt 0:06:47]} Ne6 {[%emt 0:04:04]} 26. f5 {[%emt 0:00:34]} Nf4 {[%emt 0:00:55]} 27. Qd2 {[%emt 0:01:41]} g5 {[%emt 0:02:29]} 28. Rxc5 {[%emt 0:01:48]} d3 {[%emt 0:00:08]} 29. Kh2 {[%emt 0:02:27]} Rac8 {[%emt 0:00:18]} 30. Rxc8 {[%emt 0:05:27]} Qxc8 {[%emt 0:00:04]} 31. g3 {[%emt 0:02:13]} Nd5 {[%emt 0:00:50]} 32. Qxd3 {[%emt 0:03:35]} Nb4 {[%emt 0:00:52]} 33. Qe4 {[%emt 0:02:26]} Qc5 {[%emt 0:00:37]} 34. Nd4 {[%emt 0:05:28]} Rd8 {[%emt 0:00:23]} 35. e6 {[%emt 0:03:10]} Rxd4 {[%emt 0:00:38]} 36. exf7+ {[%emt 0:02:10]} Kh7 {[%emt 0:00:05]} 37. f8=N+ {[%emt 0:01:39]} Kh8 {[%emt 0:00:36]} 38. Ng6+ {[%emt 0:00:30]} Kg7 {[%emt 0:00:08]} 39. Qb7+ {[%emt 0:00:21]} Kf6 {[%emt 0:00:12]} 40. Re6+ {[%emt 0:00:00]} 1-0